fUSD/lending_fUSD_20240104
["ID","MTS","AMOUNT","RATE_DAILY","PERIOD"]
[310148118,1704383517074,-1309.57,0.00035068,2]
[310148119,1704383517084,-854.33,0.00035068,2]
[310148120,1704383517094,-555.41,0.00035068,2]
[310148121,1704383517104,-500.0,0.00035068,2]
[310148122,1704383517114,-1030.82,0.00035068,2]
[310148123,1704383517123,-1268.47,0.00035068,2]
[310148124,1704383517133,-8961.73,0.00035068,2]
[310148125,1704383517142,-1547.75,0.00035068,2]
[310148126,1704383517151,-832.48,0.00035068,2]
[310148127,1704383517161,-2868.4,0.00035068,2]
[310148128,1704383517170,-378.05,0.00035068,2]
[310148129,1704383517180,-500.0,0.00035068,2]
[310148130,1704383517190,-1262.46,0.00035068,2]
[310148131,1704383517200,-429.92741716,0.00035068,2]
[310148132,1704383517210,-500.0,0.00035068,2]
[310148133,1704383517220,-6572.59,0.00035068,2]
[310148134,1704383517231,-593.34,0.00035068,2]
[310148135,1704383517240,-569.73,0.00035068,2]
[310148136,1704383517250,-4284.47,0.00035068,2]
[310148137,1704383517260,-918.99,0.00035068,2]
[310148138,1704383517270,-11824.09,0.00035068,2]
[310148139,1704383517280,-500.0,0.00035068,2]
[310148140,1704383517289,-1528.9,0.00035068,2]
[310148141,1704383517299,-839.12,0.00035068,2]
[310148142,1704383517309,-626.51,0.00035068,2]
[310148143,1704383517318,-815.35,0.00035068,2]
[310148144,1704383517327,-722.14,0.00035068,2]
[310148145,1704383517337,-1946.58,0.00035068,2]
[310148146,1704383517350,-512.9,0.00035068,2]
[310148147,1704383517360,-988.65,0.00035068,2]
[310148148,1704383517370,-25969.53,0.00035068,2]
[310148149,1704383517379,-2402.27,0.00035068,2]
[310148150,1704383517389,-500.0,0.00035068,2]
[310148151,1704383517399,-2320.41,0.00035068,2]
[310148152,1704383517408,-500.0,0.00035068,2]
[310148153,1704383517422,-631.59,0.00035068,2]
[310148154,1704383517433,-871.23,0.00035068,2]
[310148155,1704383517443,-1013.95,0.00035068,2]
[310148156,1704383517453,-14205.53,0.00035068,2]
[310148157,1704383517465,-1593.12,0.00035068,2]
[310148158,1704383517476,-835.86,0.00035068,2]
[310148159,1704383517486,-586.95,0.00035068,2]
[310148160,1704383517496,-500.0,0.00035068,2]
[310148161,1704383517506,-1058.98,0.00035068,2]
[310148162,1704383517516,-1333.9,0.00035068,2]
[310148163,1704383517526,-500.0,0.00035068,2]
[310148164,1704383517535,-1481.66,0.00035068,2]
[310148165,1704383517545,-684.9,0.00035068,2]
[310148166,1704383517555,-10274.33,0.00035068,2]
[310148167,1704383517565,-1140.38,0.00035068,2]
[310148168,1704383517575,-500.0,0.00035068,2]
[310148169,1704383517586,-596.7,0.00035068,2]
[310148170,1704383517595,-500.0,0.00035068,2]
[310148171,1704383517605,-5311.22,0.00035068,2]
[310148172,1704383517615,-1489.0,0.00035068,2]
[310148173,1704383517624,-500.0,0.00035068,2]
[310148174,1704383517634,-1020.8,0.00035068,2]
[310148175,1704383517642,-708.19,0.00035068,2]
[310148176,1704383517652,-1641.33,0.00035068,2]
[310148177,1704383517661,-1563.54,0.00035068,2]
[310148178,1704383517673,-500.0,0.00035068,2]
[310148179,1704383517683,-4689.3,0.00035068,2]
[310148180,1704383517692,-3501.75,0.00035068,2]
[310148181,1704383517702,-581.11,0.00035068,2]
[310148182,1704383517710,-917.4,0.00035068,2]
[310148183,1704383517720,-500.0,0.00035068,2]
[310148184,1704383517729,-1132.36,0.00035068,2]
[310148185,1704383517738,-1520.64,0.00035068,2]
[310148186,1704383517748,-1821.71,0.00035068,2]
[310148187,1704383517758,-611.97,0.00035068,2]
[310148188,1704383517768,-911.8,0.00035068,2]
[310148189,1704383517777,-980.64,0.00035068,2]
[310148190,1704383517787,-512.76,0.00035068,2]
[310148191,1704383517796,-500.0,0.00035068,2]
[310148192,1704383517805,-500.0,0.00035068,2]
[310148193,1704383517815,-611.41,0.00035068,2]
[310148194,1704383517825,-3660.07,0.00035068,2]
[310148195,1704383517834,-758.21,0.00035068,2]
[310148196,1704383517847,-4379.2,0.00035068,2]
[310148197,1704383517856,-741.69,0.00035068,2]
[310148198,1704383517866,-1104.09,0.00035068,2]
[310148199,1704383517880,-2326.77,0.00035068,2]
[310148200,1704383517889,-500.0,0.00035068,2]
[310148201,1704383517898,-1792.29,0.00035068,2]
[310148202,1704383517908,-1962.91,0.00035068,2]
[310148203,1704383517920,-20208.69,0.00035068,2]
[310148204,1704383517931,-500.0,0.00035068,2]
[310148205,1704383517941,-500.0,0.00035068,2]
[310148206,1704383517950,-765.42,0.00035068,2]
[310148207,1704383517959,-3848.58,0.00035068,2]
[310148208,1704383517969,-2574.21,0.00035068,2]
[310148209,1704383517979,-879.94,0.00035068,2]
[310148210,1704383517989,-764.06,0.00035068,2]
[310148211,1704383517999,-500.0,0.00035068,2]
[310148212,1704383518009,-2186.2,0.00035068,2]
[310148213,1704383518018,-500.0,0.00035068,2]
[310148214,1704383518028,-8578.01,0.00035068,2]
[310148215,1704383518037,-706.9,0.00035068,2]
[310148216,1704383518049,-500.0,0.00035068,2]
[310148217,1704383518059,-6759.03,0.00035068,2]
[310148218,1704383518068,-500.0,0.00035068,2]
[310148219,1704383518078,-2234.12,0.00035068,2]
[310148220,1704383518088,-1367.02,0.00035068,2]
[310148221,1704383518098,-7989.34,0.00035068,2]
[310148222,1704383518107,-571.79,0.00035068,2]
[310148223,1704383518117,-886.97,0.00035068,2]
[310148224,1704383518126,-1134.35,0.00035068,2]
[310148225,1704383518136,-582.52,0.00035068,2]
[310148226,1704383518146,-3268.96,0.00035068,2]
[310148227,1704383518157,-1409.66,0.00035068,2]
[310148228,1704383518168,-5952.87,0.00035068,2]
[310148229,1704383518177,-1108.08,0.00035068,2]
[310148230,1704383518187,-617.19,0.00035068,2]
[310148231,1704383518197,-734.31,0.00035068,2]
[310148232,1704383518206,-1176.29,0.00035068,2]
[310148233,1704383518216,-352.76339118,0.00035068,2]
[310148234,1704383518227,-593.47,0.00035068,2]
[310148235,1704383518236,-3760.93,0.00035068,2]
[310148236,1704383518245,-500.0,0.00035068,2]
[310148237,1704383518255,-2563.17,0.00035068,2]
[310148238,1704383518264,-648.96,0.00035068,2]
[310148239,1704383518274,-735.99,0.00035068,2]
[310148240,1704383518283,-727.54,0.00035068,2]
[310148241,1704383518292,-912.37,0.00035068,2]
[310148242,1704383518301,-1710.93,0.00035068,2]
[310148243,1704383518311,-797.16,0.00035068,2]
[310148244,1704383518338,-500.0,0.00035068,2]
[310148245,1704383518349,-500.0,0.00035068,2]
[310148246,1704383518359,-1782.07,0.00035068,2]
[310148247,1704383518369,-3505.81,0.00035068,2]
[310148248,1704383518380,-526.11,0.00035068,2]
[310148249,1704383518389,-6058.41,0.00035068,2]
[310148250,1704383518398,-1123.81,0.00035068,2]
[310148251,1704383518408,-743.76,0.00035068,2]
[310148252,1704383518418,-813.13,0.00035068,2]
[310148253,1704383518427,-500.0,0.00035068,2]
[310148254,1704383518437,-500.0,0.00035068,2]
[310148255,1704383518446,-1111.68,0.00035068,2]
[310148256,1704383518456,-633.13,0.00035068,2]
[310148257,1704383518467,-2411.49,0.00035068,2]
[310148258,1704383518476,-1980.1,0.00035068,2]
[310148259,1704383518486,-766.75,0.00035068,2]
[310148260,1704383518496,-2763.55,0.00035068,2]
[310148261,1704383518506,-711.0,0.00035068,2]
[310148262,1704383518515,-1787.6,0.00035068,2]
[310148263,1704383518525,-500.0,0.00035068,2]
[310148264,1704383518535,-500.0,0.00035068,2]
[310148265,1704383518544,-500.0,0.00035068,2]
[310148266,1704383518555,-500.0,0.00035068,2]
[310148267,1704383518566,-1042.72,0.00035068,2]
[310148268,1704383518576,-1394.66,0.00035068,2]
[310148269,1704383518585,-786.66,0.00035068,2]
[310148270,1704383518594,-500.0,0.00035068,2]
[310148271,1704383518604,-739.91,0.00035068,2]
[310148272,1704383518614,-1762.55,0.00035068,2]
[310148273,1704383518624,-500.0,0.00035068,2]
[310148274,1704383518634,-1801.4,0.00035068,2]
[310148275,1704383518644,-587.29,0.00035068,2]
[310148276,1704383518655,-2106.94,0.00035068,2]
[310148277,1704383518666,-690.38,0.00035068,2]
[310148278,1704383518678,-6835.67,0.00035068,2]
[310148279,1704383518688,-2355.23,0.00035068,2]
[310148280,1704383518697,-500.0,0.00035068,2]
[310148281,1704383518707,-807.14,0.00035068,2]
[310148282,1704383518717,-1766.54,0.00035068,2]
[310148283,1704383518728,-1880.43,0.00035068,2]
[310148284,1704383518738,-500.0,0.00035068,2]
[310148285,1704383518749,-2893.14,0.00035068,2]
[310148286,1704383518759,-23730.97,0.00035068,2]
[310148287,1704383518769,-500.0,0.00035068,2]
[310148288,1704383518779,-10972.52,0.00035068,2]
[310148289,1704383518788,-9423.68,0.00035068,2]
[310148290,1704383518797,-553.51,0.00035068,2]
[310148291,1704383518807,-3799.42,0.00035068,2]
[310148292,1704383518817,-24318.36,0.00035068,2]
[310148293,1704383518827,-1932.66,0.00035068,2]
[310148294,1704383518837,-640.95,0.00035068,2]
[310148295,1704383518852,-3015.08,0.00035068,2]
[310148296,1704383518861,-1267.01,0.00035068,2]
[310148297,1704383518871,-1749.78,0.00035068,2]
[310148298,1704383518880,-500.0,0.00035068,2]
[310148299,1704383518891,-513.45,0.00035068,2]
[310148300,1704383518901,-1411.28,0.00035068,2]
[310148301,1704383518916,-1062.95,0.00035068,2]
[310148302,1704383518928,-517.41,0.00035068,2]
[310148303,1704383518938,-500.0,0.00035068,2]
[310148304,1704383518949,-500.0,0.00035068,2]
[310148305,1704383518959,-500.0,0.00035068,2]
[310148306,1704383518968,-3700.77,0.00035068,2]
[310148307,1704383518979,-727.7,0.00035068,2]
[310148308,1704383518989,-2283.61,0.00035068,2]
[310148309,1704383519000,-5126.0,0.00035068,2]
[310148310,1704383519011,-1211.88,0.00035068,2]
[310148311,1704383519021,-500.0,0.00035068,2]
[310148312,1704383519032,-1230.09,0.00035068,2]
[310148313,1704383519043,-1468.8,0.00035068,2]
[310148314,1704383519055,-3590.95,0.00035068,2]
[310148315,1704383519064,-1555.26,0.00035068,2]
[310148316,1704383519074,-3092.57,0.00035068,2]
[310148317,1704383519084,-4974.75,0.00035068,2]
[310148318,1704383519094,-686.38,0.00035068,2]
[310148319,1704383519104,-500.0,0.00035068,2]
[310148320,1704383519116,-2190.23,0.00035068,2]
[310148321,1704383519126,-2624.79,0.00035068,2]
[310148322,1704383519136,-3516.79,0.00035068,2]
[310148323,1704383519146,-500.0,0.00035068,2]
[310148324,1704383519156,-500.0,0.00035068,2]
[310148325,1704383519167,-500.0,0.00035068,2]
[310148326,1704383519177,-948.35,0.00035068,2]
[310148327,1704383519187,-318.7881463,0.00035068,2]
[310148328,1704383519197,-6437.83,0.00035068,2]
[310148329,1704383519207,-1067.46,0.00035068,2]
[310148330,1704383519217,-4606.86,0.00035068,2]
[310148331,1704383519227,-706.69,0.00035068,2]
[310148332,1704383519237,-541.5,0.00035068,2]
[310148333,1704383519248,-1535.74,0.00035068,2]
[310148334,1704383519258,-759.67,0.00035068,2]
[310148335,1704383519268,-500.0,0.00035068,2]
[310148336,1704383519279,-2597.4,0.00035068,2]
[310148337,1704383519288,-779.16,0.00035068,2]
[310148338,1704383519298,-500.0,0.00035068,2]
[310148339,1704383519308,-206.0,0.0003508,2]
[310148340,1704383519319,-201.50018536,0.00035098,2]
[310148341,1704383519329,-6829.27155038,0.00035144,2]
[310148342,1704383519339,-1000.0,0.00035195,7]
[310148343,1704383519348,-1000.0,0.00035195,7]
[310148344,1704383519357,-151.77777,0.00035198,2]
[310148345,1704383519367,-153.84,0.00035221,2]
[310148346,1704383519377,-151.0,0.00035223,30]
[310148347,1704383519388,-154.56836738,0.00035242,7]
[310148348,1704383519398,-156.05,0.0003525,2]
[310148349,1704383519409,-1336.23,0.00035278,2]
[310148350,1704383519420,-3525.84,0.00035278,2]
[310148351,1704383519431,-6019.26,0.00035278,2]
[310148352,1704383519441,-3397.48,0.00035278,2]
[310148353,1704383519453,-1947.5,0.00035278,2]
[310148354,1704383519463,-1682.52,0.00035278,2]
[310148355,1704383519473,-1189.91,0.00035278,2]
[310148356,1704383519483,-4784.68,0.00035278,2]
[310148357,1704383519494,-934.89,0.00035278,2]
[310148358,1704383519505,-985.65,0.00035278,2]
[310148359,1704383519515,-1403.95,0.00035278,2]
[310148360,1704383519525,-853.25,0.00035278,2]
[310148361,1704383519535,-1981.92,0.00035278,2]
[310148362,1704383519545,-753.63,0.00035278,2]
[310148363,1704383519555,-1272.31,0.00035278,2]
[310148364,1704383519567,-4520.67,0.00035278,2]
[310148365,1704383519577,-2090.34,0.00035278,2]
[310148366,1704383519589,-500.0,0.00035278,2]
[310148367,1704383519599,-500.0,0.00035278,2]
[310148368,1704383519608,-1472.7,0.00035278,2]
[310148369,1704383519618,-631.14,0.00035278,2]
[310148370,1704383519629,-1000.0,0.00035297,2]
[310148371,1704383519639,-774.92228259,0.000353,7]
[310148372,1704383519651,-201.50018536,0.00035305,2]
[310148373,1704383519662,-1001.1883615,0.00035318,2]
[310148374,1704383519674,-612.358331,0.00035318,2]
[310148375,1704383519685,-1909.0537166,0.00035318,2]
[310148376,1704383519695,-4797.0133586,0.00035318,2]
[310148377,1704383519705,-66939.1881832,0.00035318,2]
[310148378,1704383519716,-381.8107433,0.00035318,2]
[310148379,1704383519726,-213.84,0.00035324,2]
[310148380,1704383519737,-150.0,0.00035341,2]
[310148381,1704383519748,-152.03136356,0.00035342,2]
[310148382,1704383519759,-2396.292463,0.00035342,2]
[310148383,1704383519769,-2098.350078,0.00035342,2]
[310148384,1704383519779,-388.06034995,0.00035342,3]
[310148385,1704383519789,-6633.854113,0.00035342,2]
[310148386,1704383519799,-2374.194769,0.00035342,2]
[310148387,1704383519810,-500.0,0.00035342,2]
[310148388,1704383519821,-2967.743951,0.00035342,2]
[310148389,1704383519831,-524.6326369,0.00035342,2]
[310148390,1704383519842,-4748.389536,0.00035342,2]
[310148391,1704383519856,-500.0,0.00035342,2]
[310148392,1704383519866,-500.0,0.00035342,2]
[310148393,1704383519876,-1581.45,0.00035342,2]
[310148394,1704383519887,-592.65,0.00035342,2]
[310148395,1704383519896,-500.0,0.00035342,2]
[310148396,1704383519906,-500.0,0.00035342,2]
[310148397,1704383519918,-500.0,0.00035342,2]
[310148398,1704383519928,-820.54,0.00035342,2]
[310148399,1704383519938,-622.89,0.00035342,2]
[310148400,1704383519948,-14245.168608,0.00035342,2]
[310148401,1704383519958,-500.0,0.00035342,2]
[310148402,1704383519968,-1538.878984,0.00035342,2]
[310148403,1704383519978,-553.43,0.00035342,2]
[310148404,1704383519989,-345.50936168,0.00035342,2]
[310148405,1704383519999,-1835.21,0.00035342,2]
[310148406,1704383520009,-500.0,0.00035342,2]
[310148407,1704383520020,-532.57,0.00035342,2]
[310148408,1704383520030,-558.15,0.00035342,2]
[310148409,1704383520040,-434.30804527,0.00035342,2]
[310148410,1704383520053,-500.0,0.00035342,2]
[310148411,1704383520063,-916.08,0.00035342,2]
[310148412,1704383520074,-500.0,0.00035342,2]
[310148413,1704383520085,-1068.71,0.00035342,2]
[310148414,1704383520095,-1645.35,0.00035342,2]
[310148415,1704383520106,-500.0,0.00035342,2]
[310148416,1704383520115,-819.52,0.00035342,2]
[310148417,1704383520126,-1289.9,0.00035342,2]
[310148418,1704383520136,-701.85,0.00035342,2]
[310148419,1704383520146,-592.8,0.00035342,2]
[310148420,1704383520157,-1192.37,0.00035342,2]
[310148421,1704383520169,-515.52,0.00035342,2]
[310148422,1704383520179,-500.0,0.00035342,2]
[310148423,1704383520189,-500.0,0.00035342,2]
[310148424,1704383520199,-1365.23,0.00035342,2]
[310148425,1704383520209,-500.0,0.00035342,2]
[310148426,1704383520219,-500.0,0.00035342,2]
[310148427,1704383520228,-500.0,0.00035342,2]
[310148428,1704383520238,-500.0,0.00035342,2]
[310148429,1704383520248,-507.42,0.00035342,2]
[310148430,1704383520258,-599.75,0.00035342,2]
[310148431,1704383520268,-592.27,0.00035342,2]
[310148432,1704383520278,-500.0,0.00035342,2]
[310148433,1704383520288,-664.2,0.00035342,2]
[310148434,1704383520298,-500.0,0.00035342,2]
[310148435,1704383520308,-1043.25,0.00035342,2]
[310148436,1704383520318,-626.37,0.00035342,2]
[310148437,1704383520328,-500.0,0.00035342,2]
[310148438,1704383520339,-500.0,0.00035342,2]
[310148439,1704383520349,-500.0,0.00035342,2]
[310148440,1704383520358,-917.78,0.00035342,2]
[310148441,1704383520368,-977.44,0.00035342,2]
[310148442,1704383520377,-500.0,0.00035342,2]
[310148443,1704383520386,-500.0,0.00035342,2]
[310148444,1704383520396,-500.0,0.00035342,2]
[310148445,1704383520406,-535.3,0.00035342,2]
[310148446,1704383520416,-623.93659393,0.00035342,2]
[310148447,1704383520430,-500.0,0.00035342,2]
[310148448,1704383520440,-573.47,0.00035342,2]
[310148449,1704383520452,-679.66,0.00035342,2]
[310148450,1704383520462,-868.42,0.00035342,2]
[310148451,1704383520472,-500.0,0.00035342,2]
[310148452,1704383520482,-496.95186196,0.00035342,2]
[310148453,1704383520492,-500.0,0.00035342,2]
[310148454,1704383520501,-941.55,0.00035342,2]
[310148455,1704383520511,-1452.62,0.00035342,2]
[310148456,1704383520521,-500.0,0.00035342,2]
[310148457,1704383520530,-540.38,0.00035342,2]
[310148458,1704383520540,-500.0,0.00035342,2]
[310148459,1704383520550,-500.0,0.00035342,2]
[310148460,1704383520561,-1669.57,0.00035342,2]
[310148461,1704383520571,-1419.74,0.00035342,2]
[310148462,1704383520581,-387.85145237,0.00035342,2]
[310148463,1704383520590,-1040.63,0.00035342,2]
[310148464,1704383520600,-1057.35,0.00035342,2]
[310148465,1704383520610,-1409.78,0.00035342,2]
[310148466,1704383520620,-786.88,0.00035342,2]
[310148467,1704383520630,-1086.26,0.00035342,2]
[310148468,1704383520640,-500.0,0.00035342,2]
[310148469,1704383520650,-500.0,0.00035342,2]
[310148470,1704383520660,-532.76,0.00035342,2]
[310148471,1704383520670,-316.18863096,0.00035342,2]
[310148472,1704383520680,-728.75,0.00035342,2]
[310148473,1704383520690,-500.0,0.00035342,2]
[310148474,1704383520700,-500.0,0.00035342,2]
[310148475,1704383520710,-1028.01,0.00035342,2]
[310148476,1704383520720,-465.40428266,0.00035342,2]
[310148477,1704383520729,-803.51,0.00035342,2]
[310148478,1704383520740,-500.0,0.00035342,2]
[310148479,1704383520750,-517.51,0.00035342,2]
[310148480,1704383520760,-1123.92,0.00035342,2]
[310148481,1704383520770,-548.13366901,0.00035342,2]
[310148482,1704383520780,-500.0,0.00035342,2]
[310148483,1704383520789,-720.98,0.00035342,2]
[310148484,1704383520799,-1451.87,0.00035342,2]
[310148485,1704383520809,-500.0,0.00035342,2]
[310148486,1704383520821,-678.82,0.00035342,2]
[310148487,1704383520831,-759.68,0.00035342,2]
[310148488,1704383520841,-3071.54,0.00035342,2]
[310148489,1704383520851,-615.97,0.00035342,2]
[310148490,1704383520864,-1363.51,0.00035342,2]
[310148491,1704383520874,-566.19,0.00035342,2]
[310148492,1704383520883,-870.68,0.00035342,2]
[310148493,1704383520893,-500.0,0.00035342,2]
[310148494,1704383520904,-500.0,0.00035342,2]
[310148495,1704383520915,-535.58,0.00035342,2]
[310148496,1704383520926,-1457.23,0.00035342,2]
[310148497,1704383520936,-902.65,0.00035342,2]
[310148498,1704383520947,-500.0,0.00035342,2]
[310148499,1704383520958,-900.66,0.00035342,2]
[310148500,1704383520968,-1222.61,0.00035342,2]
[310148501,1704383520978,-1042.2,0.00035342,2]
[310148502,1704383520988,-500.0,0.00035342,2]
[310148503,1704383520998,-500.0,0.00035342,2]
[310148504,1704383521008,-500.0,0.00035342,2]
[310148505,1704383521017,-728.74,0.00035342,2]
[310148506,1704383521027,-627.53,0.00035342,2]
[310148507,1704383521037,-746.5,0.00035342,2]
[310148508,1704383521049,-847.61,0.00035342,2]
[310148509,1704383521060,-500.0,0.00035342,2]
[310148510,1704383521070,-1537.38,0.00035342,2]
[310148511,1704383521080,-1357.77,0.00035342,2]
[310148512,1704383521090,-1147.35,0.00035342,2]
[310148513,1704383521100,-1349.09,0.00035342,2]
[310148514,1704383521110,-1079.84,0.00035342,2]
[310148515,1704383521120,-500.0,0.00035342,2]
[310148516,1704383521130,-1513.63,0.00035342,2]
[310148517,1704383521140,-500.0,0.00035342,2]
[310148518,1704383521150,-500.0,0.00035342,2]
[310148519,1704383521161,-500.0,0.00035342,2]
[310148520,1704383521173,-511.54,0.00035342,2]
[310148521,1704383521183,-500.0,0.00035342,2]
[310148522,1704383521193,-1462.66,0.00035342,2]
[310148523,1704383521204,-500.0,0.00035342,2]
[310148524,1704383521214,-1172.19,0.00035342,2]
[310148525,1704383521224,-1990.12,0.00035342,2]
[310148526,1704383521234,-603.95,0.00035342,2]
[310148527,1704383521246,-1219.74,0.00035342,2]
[310148528,1704383521256,-500.0,0.00035342,2]
[310148529,1704383521268,-500.0,0.00035342,2]
[310148530,1704383521279,-500.0,0.00035342,2]
[310148531,1704383521289,-518.7524095,0.00035342,2]
[310148532,1704383521300,-1670.1,0.00035342,2]
[310148533,1704383521311,-912.27,0.00035342,2]
[310148534,1704383521323,-500.0,0.00035342,2]
[310148535,1704383521333,-500.0,0.00035342,2]
[310148536,1704383521345,-500.0,0.00035342,2]
[310148537,1704383521355,-1474.82,0.00035342,2]
[310148538,1704383521366,-880.31,0.00035342,2]
[310148539,1704383521376,-958.09,0.00035342,2]
[310148540,1704383521387,-500.0,0.00035342,2]
[310148541,1704383521398,-1366.5,0.00035342,2]
[310148542,1704383521408,-500.0,0.00035342,2]
[310148543,1704383521420,-574.97,0.00035342,2]
[310148544,1704383521430,-937.71,0.00035342,2]
[310148545,1704383521440,-500.0,0.00035342,2]
[310148546,1704383521450,-633.81,0.00035342,2]
[310148547,1704383521460,-937.76,0.00035342,2]
[310148548,1704383521470,-702.39,0.00035342,2]
[310148549,1704383521480,-865.04,0.00035342,2]
[310148550,1704383521490,-636.93,0.00035342,2]
[310148551,1704383521500,-819.06,0.00035342,2]
[310148552,1704383521512,-500.0,0.00035342,2]
[310148553,1704383521522,-500.0,0.00035342,2]
[310148554,1704383521533,-1417.4,0.00035342,2]
[310148555,1704383521544,-500.0,0.00035342,2]
[310148556,1704383521555,-2014.53,0.00035342,2]
[310148557,1704383521565,-542.64,0.00035342,2]
[310148558,1704383521576,-876.9,0.00035342,2]
[310148559,1704383521587,-500.0,0.00035342,2]
[310148560,1704383521598,-500.0,0.00035342,2]
[310148561,1704383521610,-572.05,0.00035342,2]
[310148562,1704383521620,-1000.0,0.00035342,2]
[310148563,1704383521630,-500.0,0.00035342,2]
[310148564,1704383521640,-1205.37,0.00035342,2]
[310148565,1704383521650,-500.0,0.00035342,2]
[310148566,1704383521660,-500.0,0.00035342,2]
[310148567,1704383521671,-674.61,0.00035342,2]
[310148568,1704383521681,-1957.4,0.00035342,2]
[310148569,1704383521691,-500.0,0.00035342,2]
[310148570,1704383521701,-695.0,0.00035342,2]
[310148571,1704383521712,-500.0,0.00035342,2]
[310148572,1704383521938,-500.0,0.00035342,2]
[310148573,1704383521948,-803.55,0.00035342,2]
[310148574,1704383521959,-500.0,0.00035342,2]
[310148575,1704383521970,-882.03,0.00035342,2]
[310148576,1704383521980,-815.47,0.00035342,2]
[310148577,1704383521990,-500.0,0.00035342,2]
[310148578,1704383521999,-1914.74,0.00035342,2]
[310148579,1704383522009,-500.0,0.00035342,2]
[310148580,1704383522019,-574.34,0.00035342,2]
[310148581,1704383522032,-500.0,0.00035342,2]
[310148582,1704383522043,-500.0,0.00035342,2]
[310148583,1704383522056,-944.72,0.00035342,2]
[310148584,1704383522066,-982.79,0.00035342,2]
[310148585,1704383522076,-328.25,0.00035342,2]
[310148586,1704383522086,-500.0,0.00035342,2]
[310148587,1704383522097,-804.81,0.00035342,2]
[310148588,1704383522106,-500.0,0.00035342,2]
[310148589,1704383522116,-1565.08,0.00035342,2]
[310148590,1704383522126,-959.87,0.00035342,2]
[310148591,1704383522136,-500.0,0.00035342,2]
[310148592,1704383522147,-700.63,0.00035342,2]
[310148593,1704383522159,-500.0,0.00035342,2]
[310148594,1704383522172,-885.49,0.00035342,2]
[310148595,1704383522183,-744.98,0.00035342,2]
[310148596,1704383522194,-500.0,0.00035342,2]
[310148597,1704383522204,-500.0,0.00035342,2]
[310148598,1704383522214,-1410.46,0.00035342,2]
[310148599,1704383522224,-500.0,0.00035342,2]
[310148600,1704383522234,-500.0,0.00035342,2]
[310148601,1704383522244,-500.0,0.00035342,2]
[310148602,1704383522254,-500.0,0.00035342,2]
[310148603,1704383522265,-957.51,0.00035342,2]
[310148604,1704383522275,-699.39,0.00035342,2]
[310148605,1704383522287,-500.0,0.00035342,2]
[310148606,1704383522298,-500.0,0.00035342,2]
[310148607,1704383522308,-1991.4,0.00035342,2]
[310148608,1704383522318,-500.0,0.00035342,2]
[310148609,1704383522328,-500.0,0.00035342,2]
[310148610,1704383522338,-500.0,0.00035342,2]
[310148611,1704383522348,-500.0,0.00035342,2]
[310148612,1704383522359,-2780.73,0.00035342,2]
[310148613,1704383522369,-500.0,0.00035342,2]
[310148614,1704383522380,-564.47,0.00035342,2]
[310148615,1704383522390,-187.32311033,0.00035342,2]
[310148616,1704383522400,-1394.86,0.00035342,2]
[310148617,1704383522409,-1775.83,0.00035342,2]